Cogmind - Beta 13 @@@ ROGUE MODE // 2024.04.06 @ 08:54:24 Player: OurFastestFox Result: Smashed by cave-in Performance ------------- Evolutions (3) 1500 Regions Visited (7) 1400 Robots Destroyed (33) 165 Value Destroyed (1031) 1031 Prototype IDs (1) 20 Alien Tech Used (0) 0 Bonus (700) 700 TOTAL SCORE: 4816 Bonus ------- Entered Garrisons 200 Entered DSFs 500 Cogmind --------- Core Integrity 0/700 Matter 166/300 Energy 15/100 System Corruption 0% Temperature Cool (0) Movement Core (100) Ox1 Location -7/DSF Parts ------- > --- POWER (2) -------- (None) > --- PROPULSION (4) --- (None) > --- UTILITY (4) ------ Targeting Computer > --- WEAPON (3) ------- Assault Cannon > --- INVENTORY (5) ---- Cryofiber Web Field Laser Pulse Rifle Peak State ------------ > --- POWER ------------ Ion Engine > --- PROPULSION ------- Xenon Bombardment Thruster Xenon Bombardment Thruster Xenon Bombardment Thruster Xenon Bombardment Thruster > --- UTILITY ---------- Cryofiber Web Improved Sensor Array Improved Signal Interpreter Hacking Suite > --- WEAPON ----------- Field Laser Pulse Rifle Assault Cannon > --- INVENTORY -------- Field Laser Field Laser Plasma Cannon [Rating: 39] Favorites ----------- Power Ion Engine Engine Ion Engine Propulsion Xenon Bombardment Thruster Treads Light Treads Leg Aluminum Leg Flight Unit Xenon Bombardment Thruster Utility Hacking Suite Device Improved Sensor Array Storage Small Storage Unit Processor Advanced Targeting Computer Hackware Hacking Suite Weapon Assault Cannon Energy Gun Pulse Rifle Energy Cannon Beam Cannon Ballistic Gun Light Assault Rifle Ballistic Cannon Assault Cannon Launcher Proton Missile Launcher Special Melee Weapon Datajack Build | -11 -10 -9 -8 -8 -8 -7 -7 ------- Run | Yrd Mat Mat Mat Gar Mat Fac DSF Slots Evolved 6 | . . 2 2 . . 2 . Power 1 | . . . . . . 1 . Propulsion 2 | . . 1 1 . . . . Utility 2 | . . . 1 . . 1 . Weapon 1 | . . 1 . . . . . Parts Attached 55 | 6 10 11 3 1 16 6 2 Power 7 | 1 1 2 . . 3 . . Engine 7 | 1 1 2 . . 3 . . Core . | . . . . . . . . Reactor . | . . . . . . . . Propulsion 15 | 4 2 3 . . 6 . . Treads 2 | 2 . . . . . . . Leg 4 | 2 . . . . 2 . . Wheel . | . . . . . . . . Hover . | . . . . . . . . Flight 9 | . 2 3 . . 4 . . Utility 15 | 1 3 2 3 . 4 2 . Device 6 | . 1 . 2 . 2 1 . Storage 1 | 1 . . . . . . . Processor 6 | . 2 . 1 . 2 1 . Hackware 2 | . . 2 . . . . . Protection . | . . . . . . . . Artifact . | . . . . . . . . Weapon 18 | . 4 4 . 1 3 4 2 Energy Gun 5 | . 1 1 . . 2 1 . Energy Cannon 4 | . 1 1 . . . 1 1 Ballistic Gun 4 | . 2 1 . . . 1 . Ballistic Cannon 3 | . . . . 1 1 . 1 Launcher 1 | . . . . . . 1 . Special Weapon . | . . . . . . . . Impact Weapon . | . . . . . . . . Slashing Weapon . | . . . . . . . . Piercing Weapon . | . . . . . . . . Special Melee Weapon 1 | . . 1 . . . . . Unidentified Prototypes 1 | . . 1 . . . . . Parts Lost 27 | . . 10 . 5 1 . 11 Power 5 | . . 2 . 1 1 . 1 Propulsion 9 | . . 3 . 2 . . 4 Utility 6 | . . 2 . 1 . . 3 Weapon 7 | . . 3 . 1 . . 3 Highest Loss Streak 11 | . . 9 . 4 1 . 11 To Critical Strikes 1 | . . 1 . . . . . Average Slot Usage (%) 68 | . 90 70 63 44 69 80 43 Engine 8 | . 14 7 9 4 9 7 . Leg 6 | . 6 . . . 13 . . Flight 13 | . 20 19 18 13 6 30 13 Device 5 | . 7 6 4 . 4 7 4 Processor 9 | . 8 6 4 9 11 7 11 Hackware 7 | . . 5 18 13 9 7 3 Energy Gun 4 | . 6 3 . . 5 5 . Energy Cannon 4 | . 7 14 9 4 . 4 2 Ballistic Gun 2 | . 14 4 . . . 1 3 Ballistic Cannon 3 | . . . . . 9 2 . Naked Turns . | . . . . . . . . Heaviest Build 22 | 10 14 12 8 7 17 22 17 Greatest Support 40 | 40 20 12 8 8 27 24 18 Greatest Overweight (x) 4 | 1 4 3 . . . . . Average Overweight (x) . | . . . . . . . . Largest Inventory Capacity 8 | 8 8 5 5 5 5 5 5 Average Capacity 5 | 5 5 5 5 5 5 5 5 Most Carried 5 | 5 5 5 4 3 5 5 5 Average Carried 2 | 2 3 3 3 2 1 4 4 Final Capacity 8 | 8 5 5 5 5 5 5 5 Final Carried 5 | 4 4 3 3 3 3 5 3 Class Distribution -------------------- 53% | Mutant 34% | Scavenger-Mutant 9% | Scavenger-Sprinter Dominant Class ---------------- Scavenger-Mutant | -10/Materials Scavenger-Mutant | -9/Materials Scavenger-Mutant | -8/Materials Mutant | -8/Garrison Mutant | -8/Materials Scavenger-Mutant | -7/Factory Mutant | -7/DSF Resources | -11 -10 -9 -8 -8 -8 -7 -7 ----------- Run | Yrd Mat Mat Mat Gar Mat Fac DSF Matter Collected 840 | 171 57 271 . . 268 12 61 Remotely . | . . . . . . . . Salvage Created 1185 | . 77 474 . . 425 . 209 Parts 75 | . 8 32 . . 20 . 15 Haulers Intercepted 1 | . . 1 . . . . . Recyclers Shooed . | . . . . . . . . Parts Field Recycled . | . . . . . . . . Retrieved Matter . | . . . . . . . . Parts Self-Destructed . | . . . . . . . . Prevented . | . . . . . . . . Kills | -11 -10 -9 -8 -8 -8 -7 -7 ------- Run | Yrd Mat Mat Mat Gar Mat Fac DSF Combat Hostiles Destroyed 23 | . 3 8 . . 9 . 3 Guns 11 | . 3 4 . . 3 . 1 Cannons 12 | . . 4 . . 6 . 2 Classes Destroyed 11 | . 2 6 . . 1 . 2 Hauler 1 | . . 1 . . . . . Recycler 1 | . . 1 . . . . . Operator 2 | . . 2 . . . . . Watcher 6 | . 1 1 . . 4 . . Swarmer 6 | . 3 3 . . . . . Grunt 6 | . . 3 . . 3 . . Brawler 1 | . . 1 . . . . . Sentry 6 | . . 1 . . 5 . . Specialist 2 | . . . . . . . 2 Hunter 1 | . . . . . 1 . . Heavy 1 | . . . . . . . 1 Best Kill Streak 7 | . 3 7 . . 3 . 2 Combat Bots Only 4 | . 3 4 . . 3 . 2 Max Kills in Single Turn 2 | . 2 2 . . 1 . 1 Gunslinging 1 | . 1 . . . . . . Exploded . | . . . . . . . . Melee . | . . . . . . . . Uniques/NPCs Destroyed . | . . . . . . . . Combat | -11 -10 -9 -8 -8 -8 -7 -7 -------- Run | Yrd Mat Mat Mat Gar Mat Fac DSF Hostile Shots Fired 335 | . 12 77 . 67 66 . 113 Missed 137 | . 6 26 . 33 28 . 44 Damage Taken 2907 | . 51 673 . 422 500 . 1261 Core 1398 | . 27 221 . 308 134 . 708 Absorbed by Shields 70 | . . . . 29 . . 41 Core Remaining (%) 63 | 100 89 44 . . 19 . . Volleys Fired 95 | . 9 23 . 1 44 4 14 Largest 3 | . 2 3 . 1 2 3 2 Hottest 187 | . 80 148 . 68 107 187 80 Shots Fired 160 | . 18 49 . 1 65 12 15 Gun 71 | . 17 21 . . 21 4 8 Cannon 88 | . 1 28 . 1 44 8 6 Launcher 1 | . . . . . . . 1 Special . | . . . . . . . . Kinetic 74 | . 9 8 . . 44 4 9 Thermal 72 | . 9 28 . 1 21 8 5 Explosive . | . . . . . . . . Electromagnetic 14 | . . 13 . . . . 1 Robot Hit Streak 10 | . 6 10 . . 9 2 6 Robot Miss Streak 6 | . 4 3 . . 6 3 2 Penetration Max . | . . . . . . . . Secondary Targets 1 | . 1 . . . . . . Max Gunslinging Chain 1 | . 1 . . . . . . Shots Hit Robots 105 | . 9 33 . . 44 5 14 Core Hits 62 | . 5 18 . 2 20 . 17 Critical Kills . | . . . . . . . . Critical Parts Destroyed . | . . . . . . . . Critical Strikes 3 | . . . . . 3 . . Burn 1 | . . . . . 1 . . Blast 2 | . . . . . 2 . . Melee Attacks . | . . . . . . . . Impact . | . . . . . . . . Slashing . | . . . . . . . . Piercing . | . . . . . . . . Sneak Attacks . | . . . . . . . . Combat Hostiles . | . . . . . . . . Follow-up Attacks . | . . . . . . . . Damage Inflicted 2149 | . 106 575 . 9 965 105 389 Guns 805 | . 106 227 . . 271 33 168 Cannons 1239 | . . 348 . . 694 72 125 Explosions 96 | . . . . . . . 96 Melee . | . . . . . . . . Ramming 9 | . . . . 9 . . . Kinetic 1056 | . 57 44 . . 694 72 189 Thermal 805 | . 49 348 . . 271 33 104 Explosive . | . . . . . . . . Electromagnetic 279 | . . 183 . . . . 96 Impact . | . . . . . . . . Slashing . | . . . . . . . . Piercing . | . . . . . . . . Highest Corruption 22 | . . 22 . . . . . Average Corruption 20 | . . 20 . . . . . Corruption Purged . | . . . . . . . . Corruption Blocked . | . . . . . . . . Effects 6 | . . 6 . . . . . Message Errors 2 | . . 2 . . . . . Matter Fused 1 | . . 1 . . . . . Data Loss (minor) 2 | . . 2 . . . . . Misdirections 1 | . . 1 . . . . . Overload Shots . | . . . . . . . . Overflow Damage . | . . . . . . . . Projectiles . | . . . . . . . . Explosions . | . . . . . . . . Melee . | . . . . . . . . Knockbacks 3 | . . . . . 2 1 . Impact . | . . . . . . . . Kinetic 3 | . . . . . 2 1 . Secondary . | . . . . . . . . Self-Inflicted Damage 4 | . . . . 4 . . . Shots . | . . . . . . . . Rammed 3 | . . . . 3 . . . Targets Rammed 3 | . . . . 3 . . . Kicked . | . . . . . . . . Crushed . | . . . . . . . . Highest Temperature 516 | . 63 516 . 12 198 459 . Average Temperature 141 | . 27 222 . 9 67 224 . Received Heat Transfer 404 | . . 147 . 131 126 . . Effects 10 | . . 6 . . . 4 . Shutdowns 1 | . . . . . . 1 . Energy Bleed 1 | . . 1 . . . . . Interference 1 | . . . . . . 1 . Short Circuit 3 | . . 2 . . . 1 . Damage (minor) 2 | . . 1 . . . 1 . Damage (major) 2 | . . 2 . . . . . Siege Activations . | . . . . . . . . Robots Corrupted . | . . . . . . . . Combat Hostiles . | . . . . . . . . Parts Fried . | . . . . . . . . Impact Corruptions . | . . . . . . . . Robots Melted . | . . . . . . . . Combat Hostiles . | . . . . . . . . Parts Melted 5 | . 1 1 . . 3 . . Heat Transferred 1791 | . 148 703 . . 666 74 200 Parts Sabotaged . | . . . . . . . . Parts Stolen . | . . . . . . . . Parts Stripped . | . . . . . . . . Power Chain Reactions . | . . . . . . . . Alert | -11 -10 -9 -8 -8 -8 -7 -7 ------- Run | Yrd Mat Mat Mat Gar Mat Fac DSF Peak Influence 215 | . 137 162 67 88 215 112 83 Initial 89 | . . 57 63 43 42 89 78 Average 95 | . 86 101 63 53 128 98 54 Maximum Alert Level 1 | . . . . . 1 . . Low Security (%) 96 | 100 100 100 100 100 91 100 100 Level 1 3 | . . . . . 8 . . Level 2 . | . . . . . . . . Level 3 . | . . . . . . . . Level 4 . | . . . . . . . . Level 5 . | . . . . . . . . High Security . | . . . . . . . . Max Security . | . . . . . . . . Squads Dispatched 4 | . 1 . . . 1 . 2 Investigation 1 | . . . . . 1 . . Extermination . | . . . . . . . . Reinforcement 3 | . 1 . . . . . 2 Assault . | . . . . . . . . Garrison . | . . . . . . . . Intercept . | . . . . . . . . Searches Triggered . | . . . . . . . . Construction Impeded . | . . . . . . . . Haulers Reinforced . | . . . . . . . . Active Scanning Responses . | . . . . . . . . Cargo Convoy Interrupts . | . . . . . . . . Stealth | -11 -10 -9 -8 -8 -8 -7 -7 --------- Run | Yrd Mat Mat Mat Gar Mat Fac DSF Distress Signals 4 | . 1 1 . . 2 . . Communications Jammed . | . . . . . . . . Distress Signals . | . . . . . . . . Times Spotted 58 | . 12 12 . 15 14 . 5 Peak Tracking Total 15 | . 6 4 . 15 2 . 4 Tactical Retreats 3 | . 1 . . 2 . . . Traps | -11 -10 -9 -8 -8 -8 -7 -7 ------- Run | Yrd Mat Mat Mat Gar Mat Fac DSF Traps Triggered 6 | . . . . 4 1 . 1 Indirectly . | . . . . . . . . Trap Hack Attempts . | . . . . . . . . Triggered . | . . . . . . . . Disarmed . | . . . . . . . . Reprogrammed . | . . . . . . . . Reused . | . . . . . . . . Traps Extracted . | . . . . . . . . Installed . | . . . . . . . . Triggered . | . . . . . . . . Machines | -11 -10 -9 -8 -8 -8 -7 -7 ---------- Run | Yrd Mat Mat Mat Gar Mat Fac DSF Machines Disabled 1 | . . 1 . . . . . Max in Single Turn 1 | . . 1 . . . . . Garrison Access 1 | . . . . . . 1 . Garrison Relay 1 | . . . . 1 . . . Machines Repaired . | . . . . . . . . Machines Dismantled . | . . . . . . . . Machines Sabotaged . | . . . . . . . . Overloaded Fab Kills . | . . . . . . . . Hacking | -11 -10 -9 -8 -8 -8 -7 -7 --------- Run | Yrd Mat Mat Mat Gar Mat Fac DSF Machines Accessed 18 | . 3 6 1 2 1 5 . Terminals 10 | . 2 4 . 2 1 1 . Fabricators 1 | . . . . . . 1 . Repair Stations . | . . . . . . . . Recycling Units 4 | . 1 2 . . . 1 . Scanalyzers 1 | . . . . . . 1 . Garrison Access 2 | . . . 1 . . 1 . Total Hacks 44 | . 8 18 2 3 2 11 . Successful 27 | . 3 14 2 1 1 6 . Failed 17 | . 5 4 . 2 1 5 . Catastrophic 4 | . 1 1 . 1 1 . . Database Lockouts . | . . . . . . . . Manual . | . . . . . . . . Terminals 30 | . 7 14 . 3 2 4 . Fabricators 2 | . . . . . . 2 . Repair Stations . | . . . . . . . . Recycling Units 6 | . 1 4 . . . 1 . Scanalyzers 2 | . . . . . . 2 . Garrison Access 4 | . . . 2 . . 2 . Terminal Hacks 17 | . 2 12 . 1 1 1 . Record 3 | . . 3 . . . . . Open DSF 1 | . . . . . . 1 . Emergency Access Points 1 | . . . . 1 . . . Alert Level 3 | . 1 1 . . 1 . . Unreport Threat 1 | . . 1 . . . . . Dispatch Records 2 | . . 2 . . . . . Maintenance Status 1 | . 1 . . . . . . Transport Status 1 | . . 1 . . . . . Assault Status 1 | . . 1 . . . . . Hauler Manifests 1 | . . 1 . . . . . Zone Layout 2 | . . 2 . . . . . Fabricator Hacks 1 | . . . . . . 1 . Network Status 1 | . . . . . . 1 . Repair Station Hacks . | . . . . . . . . Recycling Unit Hacks 3 | . 1 2 . . . . . Report Inventory 3 | . 1 2 . . . . . Scanalyzer 2 | . . . . . . 2 . Insert Component 1 | . . . . . . 1 . Analyze 1 | . . . . . . 1 . Garrison Access Hacks 4 | . . . 2 . . 2 . Unlock Access 1 | . . . 1 . . . . Seal Access 1 | . . . . . . 1 . Coupler Status 2 | . . . 1 . . 1 . Unauthorized Hacks . | . . . . . . . . Terminals . | . . . . . . . . Fabricators . | . . . . . . . . Repair Stations . | . . . . . . . . Recycling Units . | . . . . . . . . Scanalyzers . | . . . . . . . . Garrison Access . | . . . . . . . . Data Cores Recovered 2 | . . 2 . . . . . Used 1 | . . 1 . . . . . Hacking Detections 12 | . 2 4 1 1 1 3 . Full Trace Events 1 | . . . . 1 . . . Feedback Events . | . . . . . . . . Feedback Blocked . | . . . . . . . . Robot Schematics Acquired . | . . . . . . . . Robots Built . | . . . . . . . . Authchips . | . . . . . . . . Time . | . . . . . . . . Total Robot Build Rating . | . . . . . . . . Part Schematics Acquired 1 | . . . . . . 1 . Parts Built . | . . . . . . . . Authchips . | . . . . . . . . Time . | . . . . . . . . Total Part Build Rating . | . . . . . . . . Parts Repaired . | . . . . . . . . Time . | . . . . . . . . Parts Recycled . | . . . . . . . . Recycled Matter . | . . . . . . . . Retrieved Matter . | . . . . . . . . Retrieved Components . | . . . . . . . . Parts Scanalyzed 1 | . . . . . . 1 . Part Schematics Acquired 1 | . . . . . . 1 . Parts Damaged . | . . . . . . . . Bothacking | -11 -10 -9 -8 -8 -8 -7 -7 ------------ Run | Yrd Mat Mat Mat Gar Mat Fac DSF Used RIF Installer . | . . . . . . . . Robots Hacked . | . . . . . . . . Non-combat . | . . . . . . . . Combat . | . . . . . . . . Robot Hacks Applied . | . . . . . . . . Relay Couplers Released 4 | . . . . 4 . . . Machine Destruction 4 | . . . . 4 . . . Fabnet Peak Effective % . | . . . . . . . . Robots Rewired . | . . . . . . . . Allies Hacked . | . . . . . . . . Hacks Repelled . | . . . . . . . . Allies | -11 -10 -9 -8 -8 -8 -7 -7 -------- Run | Yrd Mat Mat Mat Gar Mat Fac DSF Total Allies . | . . . . . . . . Largest Group . | . . . . . . . . Highest-Rated Group . | . . . . . . . . Highest-Rated Ally . | . . . . . . . . Total Orders . | . . . . . . . . Ally Attacks . | . . . . . . . . Total Damage . | . . . . . . . . Kills . | . . . . . . . . Allies Corrupted . | . . . . . . . . Allies Melted . | . . . . . . . . Intel | -11 -10 -9 -8 -8 -8 -7 -7 ------- Run | Yrd Mat Mat Mat Gar Mat Fac DSF Robot Analysis Total . | . . . . . . . . Derelict Logs Recovered . | . . . . . . . . Drone Launches . | . . . . . . . . Drone Recoveries . | . . . . . . . . Exploration | -11 -10 -9 -8 -8 -8 -7 -7 ------------- Run | Yrd Mat Mat Mat Gar Mat Fac DSF Turns Passed 1455 | 73 181 215 21 192 580 107 86 Spaces Moved 1517 | 50 317 232 37 266 381 205 29 Core 38 | 16 1 18 . 3 . . . Treads 5 | 5 . . . . . . . Legs 334 | 29 15 . . . 290 . . Wheels . | . . . . . . . . Hover . | . . . . . . . . Flight 1140 | . 301 214 37 263 91 205 29 Fastest Speed 31 | 50 37 34 37 37 31 31 34 Average Speed 58 | 113 42 45 37 39 102 33 34 Slowest Speed 250 | 160 250 200 37 50 125 34 34 Overloaded Moves . | . . . . . . . . Propulsion Burnouts . | . . . . . . . . Robots Hopped 5 | . 1 . . 4 . . . Cave-ins Triggered 1 | . . . . . . . 1 Exploration Rate (%) 25 | 4 52 24 5 38 31 6 40 Regions Visited 7 Branch Regions . Pre-discovered Areas . | . . . . . . . . Known Exits Taken 4 | . 1 . 1 . 1 1 . Unknown Exits Taken 2 | 1 . 1 . . . . . Scrap Searched . | . . . . . . . . Spaces Dug . | . . . . . . . . Terrain Destroyed 7 | . . . . . 7 . . Melee . | . . . . . . . . Projectile 7 | . . . . . 7 . . AOE . | . . . . . . . . Terrain Rammed . | . . . . . . . . Walls Destroyed . | . . . . . . . . Machines Disabled . | . . . . . . . . Actions | -11 -10 -9 -8 -8 -8 -7 -7 --------- Run | Yrd Mat Mat Mat Gar Mat Fac DSF Total 1934 | 67 345 296 44 349 509 234 90 Wait 125 | . . 15 . 14 48 12 36 Move 1500 | 49 314 231 36 257 380 204 29 Hop 5 | . 1 . . 4 . . . Pick Up 48 | 10 7 11 3 . 15 2 . Fast Attach 4 | . . 2 . . . 2 . Attach 46 | 6 7 9 3 1 16 2 2 Detach 6 | . . . . 1 1 4 . Swap 5 | . 3 . . . . 2 . Drop 20 | 2 4 5 2 . 5 2 . Fire 95 | . 9 23 . 1 44 4 14 Melee . | . . . . . . . . Ram 3 | . . . . 3 . . . Kick . | . . . . . . . . Crush . | . . . . . . . . Escape Stasis 77 | . . . . 68 . . 9 Rewire . | . . . . . . . . Trap . | . . . . . . . . Miscellaneous . | . . . . . . . . Route ------- -11/Scrapyard -10/Materials -9/Materials -8/Materials -8/Garrison -8/Materials -7/Factory -7/DSF History --------- Turn | Location | Event 11 | -11/Scrapyard | Discovered new exit (range 15) 74 | -11/Scrapyard | Entered Materials 143 | -10/Materials | Discovered new exit (range 16) 255 | -10/Materials | Identified exit to Materials 255 | -10/Materials | Entered another Materials area 255 | -9/Materials | Evolved 2 slots: Propulsion x1, Weapon x1 372 | -9/Materials | System corruption reached 10% 427 | -9/Materials | Lost 9 parts (2p3n2u2w) 428 | -9/Materials | Discovered new exit (range 14) 455 | -9/Materials | Core integrity fell below 50% 470 | -9/Materials | Entered another Materials area 470 | -8/Materials | Evolved 2 slots: Propulsion x1, Utility x1 490 | -8/Materials | Identified exit to Garrison 491 | -8/Materials | Entered Garrison 574 | -8/Garrison | Triggered checkpoint 594 | -8/Garrison | Garrison Relay disabled 630 | -8/Garrison | Lost 4 parts (1p1n1u1w) 666 | -8/Garrison | Triggered checkpoint 678 | -8/Garrison | Discovered new exit (range 8) 682 | -8/Garrison | Core integrity fell below 50% 683 | -8/Garrison | Entered Materials 879 | -8/Materials | Build established: Mutant 1184 | -8/Materials | Core integrity fell below 20% 1257 | -8/Materials | Discovered new exit (range 16) 1263 | -8/Materials | Identified exit to Factory 1263 | -8/Materials | Entered Factory 1263 | -7/Factory | Evolved 2 slots: Power x1, Utility x1 1369 | -7/Factory | Identified exit to DSF 1370 | -7/Factory | Entered DSF 1402 | -7/DSF | Additional patrols routed to DSF 1425 | -7/DSF | Core integrity fell below 50% 1444 | -7/DSF | Core integrity fell below 20% 1457 | -7/DSF | Crushed by falling debris 1457 | -7/DSF | Smashed by cave-in Last Messages --------------- Critical hit (Blast). Penetrated by Slug. Flak Gun destroyed. Critical hit (Blast). Hacking Suite destroyed. Knocked back. Acquired 5 matter. Xenon Bombardment Thruster destroyed. H-61 Shepherd IFF system glitched. Xenon Bombardment Thruster destroyed. Slug penetrates Wall. Imp. Sensor Array destroyed. X-57 Shotgunner destroyed. Slug penetrates Wall. H-61 Shepherd destroyed. Penetrated by Slug. Plasma Cannon destroyed. The unstable cave ceiling collapses. Crushed by falling debris. [Achievement: Unlikely Earthworm] Map ----- +----------------------------------------------------+ | ?????????????????????????????????????????????? | | ?????????????????????????????????????????????? | | ?????????????????????????????????????????????? | | ?????????????????????????????????????????????? | | ?????????????????????????????????????????????? | | ?????????????????????????????????????????????? | | ?????????????????????????????????????????????? | | ?????????????????????????????????????????????? | | ?????????????????????????????????????????????? | | ????????###?????????????? ???????????????????? | | ???????? #??????????# ##?????????????????? | | ???????? #??????????%= ##!???????????????? | | ???????? ??????????=! ????????????????? | | ???????? ?????????? ] ?????????????????? | | ???????? ??????????!!! ?????????????????? | | ???????? #??????????%!% ??????????????????? | | ???????? #??????????==hx#??????????????????? | | ???????## ###??????##;! [###????????????????? | | ???????#[ #??????#!! !% #????????????????? | | ????????[ #??????#!! [ #????????????????? | | ????????[ ???????#!! ?????????????????? | | ???????## ###??????#;; ###????????????????? | | ???????#] ^ #??????#%% !!#????????????????? | | ???????#] #??????#%% !!#????????????????? | | ???????## =########## % !!#????????????????? | | ??????### ###]]#[[[#@# ###????????????????? | | ????###"" ! ##]]#[[[### ###????????????????? | | ???#""""" % #????????????????? | | ???#"##"" % #????????????????? | | ??????#"""""##[[# #!!!!!!!#????????????????? | | ??????#"""""#########!!!!!!!#????????????????? | | ??????####"##???????#########????????????????? | | ?????????#"#?????????????????????????????????? | | ?????????""#?????????????????????????????????? | | ?????????????????????????????????????????????? | | ?????????????????????????????????????????????? | | ?????????????????????????????????????????????? | | ?????????????????????????????????????????????? | | ?????????????????????????????????????????????? | | | | | | | | | | | | | | | | | | | | | | | +----------------------------------------------------+ Best States ------------- Heat Dissipation 34 Energy Generation 14 Energy Capacity 250 Matter Stores 300 Matter Capacity 300 Sight Range 18 Robot Scan Range 15 Terrain Scan Range 16 Terrain Scan Density 10 Base Temperature (-) 100 Evasion (%) 63 Targeting Accuracy 8 Recoil Reduction 4 Offensive Hacking 20 Item Schematics ----------------- Assault Cannon | -7/Factory | Scanalyzed Robot Schematics ------------------ None Fabricated ------------ Nothing Alien Tech Used ----------------- None Achievements -------------- Dynamic Key Everything Is Under Control I Spy Unlikely Earthworm Challenges ------------ None Game ------ Seed PotentialImprinterWings Manual? 0 Play Time 00:57:16 Cumulative 4.5 hours Start 2024.04.06 @ 07:48:49 End 2024.04.06 @ 08:54:24 Sessions 1 Manual Loads 0 Difficulty Rogue Special Mode None Game No. 7 Rogue 7 Adventurer 0 Explorer 0 Win Type - Total 0 Types 0/0/0/0/0/0/0/0/0 Lore% 3 Gallery% 9 Achievement% 9 Wizard Run 0 Options --------- Layout 1 ASCII 0 Keyboard 0 Movement Mouse Keybinds 0 Fullscreen 1 Font 24/Smallcaps Map View 50x35 Zoom Use 0% Tactical HUD 0 Map Filters NONE Filters NONE Steam 1 RUN: 0af4ff13-62d4-4b34-81ef-ebe77e29061e